Cogmind - Beta 13 @@@ ROGUE MODE // 2024.06.27 @ 20:54:01 Player: Minty Result: Destroyed by P-70 Sage with Tesla Rifle Performance ------------- Evolutions (6) 3000 Regions Visited (10) 2000 Robots Destroyed (123) 615 Value Destroyed (4428) 4428 Prototype IDs (15) 300 Alien Tech Used (0) 0 Bonus (733) 733 TOTAL SCORE: 11076 Bonus ------- High Alert Combat Kills 233 Entered DSFs 500 Cogmind --------- Core Integrity 0/1150 Matter 46/300 Energy 16/100 System Corruption 12% Temperature Cool (12) Movement Hovering (70) Location -4/Factory Parts ------- > --- POWER (1) -------- (None) > --- PROPULSION (5) --- Gyrokinetic Inverter > --- UTILITY (10) ----- Improved Target Analyzer Armor Integrity Analyzer Hacking Suite Hacking Suite > --- WEAPON (3) ------- (None) > --- INVENTORY (5) ---- Advanced Heavy Treads Advanced Plasma Cannon Hypervelocity Coil Gun Peak State ------------ > --- POWER ------------ Light Antimatter Reactor > --- PROPULSION ------- Advanced Heavy Treads Myomer Leg Myomer Leg > --- UTILITY ---------- Advanced Heat Sink Advanced Heat Sink Advanced Heat Sink Advanced Heat Sink Advanced Melee Analysis Suite Improved Target Analyzer Armor Integrity Analyzer Improved Phase Shifter Improved Medium Armor Plating Hacking Suite > --- WEAPON ----------- Advanced Plasma Cannon Hypervelocity Coil Gun Hypervelocity Coil Gun > --- INVENTORY -------- Flexi-carbon Leg Coil Gun Coil Gun Coil Gun Missile Launcher [Rating: 105] Favorites ----------- Power Ion Engine Engine Ion Engine Power Core Nuclear Core Reactor Light Antimatter Reactor Propulsion Light Treads Treads Light Treads Leg Aluminum Leg Wheel Armored Huge Wheel Hover Unit Aerolev Unit Flight Unit VTOL Module Utility Hacking Suite Device Advanced Heat Sink Storage Medium Storage Unit Processor Advanced Targeting Computer Hackware Hacking Suite Protection Hardened Light Armor Plating Weapon Assault Rifle Energy Gun Beam Rifle Energy Cannon Light EM Pulse Cannon Ballistic Gun Assault Rifle Ballistic Cannon Mass Driver Launcher Grenade Launcher Impact Weapon Heavy Mace Slashing Weapon Great Axe Build | -11 -10 -9 -9 -8 -8 -7 -6 -6 -5 -4 ------- Run | Yrd Mat Mat Min Mat Sto Fac Fac DSF Fac Fac Slots Evolved 12 | . . 2 . 2 . 2 2 . 2 2 Power . | . . . . . . . . . . . Propulsion 3 | . . . . 1 . 1 1 . . . Utility 8 | . . 2 . . . 1 1 . 2 2 Weapon 1 | . . . . 1 . . . . . . Parts Attached 149 | . 9 5 7 29 14 20 1 1 2 61 Power 10 | . 1 1 1 1 1 1 . . . 4 Engine 5 | . 1 1 1 . 1 1 . . . . Core 3 | . . . . 1 . . . . . 2 Reactor 2 | . . . . . . . . . . 2 Propulsion 40 | . 3 2 1 7 3 4 . . 1 19 Treads 11 | . . 2 1 3 1 . . . . 4 Leg 8 | . 3 . . . . . . . . 5 Wheel 1 | . . . . . . . . . . 1 Hover 9 | . . . . 3 2 . . . . 4 Flight 11 | . . . . 1 . 4 . . 1 5 Utility 35 | . 3 2 1 6 1 6 1 . . 15 Device 13 | . . . 1 1 1 . 1 . . 9 Storage 2 | . 1 . . 1 . . . . . . Processor 8 | . 2 . . . . 3 . . . 3 Hackware 5 | . . . . 2 . 1 . . . 2 Protection 7 | . . 2 . 2 . 2 . . . 1 Artifact . | . . . . . . . . . . . Weapon 64 | . 2 . 4 15 9 9 . 1 1 23 Energy Gun 17 | . . . 2 4 6 2 . . . 3 Energy Cannon 13 | . . . 1 4 1 1 . . 1 5 Ballistic Gun 17 | . 2 . . . 2 2 . 1 . 10 Ballistic Cannon 2 | . . . . . . . . . . 2 Launcher 10 | . . . 1 4 . 2 . . . 3 Special Weapon . | . . . . . . . . . . . Impact Weapon 3 | . . . . 3 . . . . . . Slashing Weapon 2 | . . . . . . 2 . . . . Piercing Weapon . | . . . . . . . . . . . Special Melee Weapon . | . . . . . . . . . . . Unidentified Prototypes 6 | . . . . 2 4 . . . . . Parts Lost 49 | . 2 . . 4 2 4 . 1 4 32 Power 4 | . . . . . . 1 . . . 3 Propulsion 23 | . 1 . . 2 2 2 . 1 2 13 Utility 14 | . . . . 1 . 1 . . 2 10 Weapon 8 | . 1 . . 1 . . . . . 6 Highest Loss Streak 9 | . 1 . . 3 2 2 . 1 4 9 To Critical Strikes 2 | . . . . . . 1 . . . 1 Average Slot Usage (%) 79 | . 86 81 99 92 87 80 . 57 38 51 Engine 6 | . 14 11 11 5 8 7 . 2 . . Treads 7 | . . 2 22 17 . . . . . 1 Leg 5 | . 26 19 . . . . . . . 4 Hover 4 | . . . . 7 17 5 . . . 1 Flight 2 | . . . . . . 17 . 15 8 1 Device 6 | . . . 3 8 9 2 . 6 3 12 Storage 6 | . 14 11 11 9 9 2 . . . . Processor 6 | . 2 11 7 . . 9 . 13 11 11 Hackware 6 | . . . . 8 18 15 . 13 8 3 Protection 6 | . . 4 22 7 . 3 . . . 1 Energy Gun 6 | . . . 9 14 11 4 . . . . Energy Cannon 1 | . . . 5 1 . . . . 3 1 Ballistic Gun 8 | . 27 22 3 . 12 8 . 6 . 4 Impact Weapon 1 | . . . . 6 1 . . . . . Naked Turns . | . . . . . . . . . . . Heaviest Build 46 | 13 19 28 35 42 23 25 14 14 10 46 Greatest Support 105 | 20 20 40 40 60 24 18 14 14 10 105 Greatest Overweight (x) 3 | . 1 1 . 3 3 3 . . . 3 Average Overweight (x) . | . . . . . . . . . . . Largest Inventory Capacity 10 | . 10 10 10 10 8 8 5 5 5 5 Average Capacity 7 | . 8 10 10 9 8 6 5 5 5 5 Most Carried 10 | . 10 10 10 10 8 8 4 5 5 5 Average Carried 7 | . 7 10 9 9 8 5 4 4 4 4 Final Capacity 10 | 8 10 10 10 8 8 5 5 5 5 5 Final Carried 10 | 6 10 10 10 8 8 5 4 5 5 4 Class Distribution -------------------- 36% | Scavenger-Mutant 17% | Hacker-Mutant 13% | Mutant 8% | Hacker-Gunner 6% | Scavenger-Gunner 5% | Scavenger-Sprinter 5% | Scavenger-Tank 3% | Hacker-Tank Dominant Class ---------------- Mutant | -10/Materials Scavenger-Mutant | -9/Materials Scavenger-Mutant | -9/Mines Scavenger-Mutant | -8/Materials Hacker-Gunner | -8/Storage Scavenger-Sprinter | -7/Factory Scavenger-Sprinter | -6/Factory Scavenger-Sprinter | -6/DSF Hacker-Mutant | -5/Factory Scavenger-Gunner | -4/Factory Resources | -11 -10 -9 -9 -8 -8 -7 -6 -6 -5 -4 ----------- Run | Yrd Mat Mat Min Mat Sto Fac Fac DSF Fac Fac Matter Collected 3104 | 200 695 138 120 379 266 347 . 1 24 934 Remotely . | . . . . . . . . . . . Salvage Created 5107 | . 661 206 396 837 706 334 . . 76 1891 Parts 256 | . 49 14 16 46 40 14 . . 6 71 Haulers Intercepted 5 | . 1 . . 1 3 . . . . . Recyclers Shooed 2 | . . . 1 . . . . . . 1 Parts Field Recycled . | . . . . . . . . . . . Retrieved Matter . | . . . . . . . . . . . Parts Self-Destructed . | . . . . . . . . . . . Prevented . | . . . . . . . . . . . Kills | -11 -10 -9 -9 -8 -8 -7 -6 -6 -5 -4 ------- Run | Yrd Mat Mat Min Mat Sto Fac Fac DSF Fac Fac Combat Hostiles Destroyed 89 | . 12 4 9 18 11 10 . . 3 22 Guns 50 | . 12 4 4 5 10 2 . . . 13 Cannons 13 | . . . 2 1 . . . . 3 7 AOE 23 | . . . 3 11 . 8 . . . 1 Classes Destroyed 16 | . 6 1 3 3 . . . . . 3 Worker 8 | . 1 1 . 2 . 1 . . . 3 Builder 4 | . 2 . . 2 . . . . . . Tunneler 3 | . . . 2 1 . . . . . . Hauler 5 | . 1 . . 1 3 . . . . . Recycler 6 | . . . . 1 2 . . . . 3 Mechanic 1 | . . . . . . . . . . 1 Operator 3 | . 1 . . 1 1 . . . . . Watcher 5 | . 1 . . 2 1 . . . . 1 Swarmer 15 | . . . . 4 4 4 . . 3 . Grunt 52 | . 12 3 5 12 4 5 . . . 11 Brawler 2 | . . . . 1 . 1 . . . . Duelist 1 | . . . 1 . . . . . . . Sentry 10 | . . 1 2 1 3 . . . . 3 Hunter 4 | . . . . . . . . . . 4 Programmer 4 | . . . . . . . . . . 4 Assembled 1 | . . . 1 . . . . . . . Best Kill Streak 9 | . 7 3 3 9 4 6 . . 3 6 Combat Bots Only 7 | . 4 3 3 7 4 6 . . 3 5 Max Kills in Single Turn 3 | . 1 1 2 3 1 3 . . 1 3 Gunslinging 1 | . . . . . . . . . . 1 Exploded 2 | . . . 2 2 . 2 . . . 1 Melee . | . . . . . . . . . . . Uniques/NPCs Destroyed . | . . . . . . . . . . . Combat | -11 -10 -9 -9 -8 -8 -7 -6 -6 -5 -4 -------- Run | Yrd Mat Mat Min Mat Sto Fac Fac DSF Fac Fac Hostile Shots Fired 709 | . 57 32 20 102 50 74 . 5 19 350 Missed 231 | . 14 11 10 20 16 32 . 1 6 121 Damage Taken 8243 | . 529 270 128 1048 475 629 . 192 190 4782 Core 1707 | . 73 45 12 65 116 95 . 87 60 1154 Absorbed by Shields 24 | . . . . . . . . . . 24 Reduced by Siege Mode 8 | . . . . . . . . . . 8 Redirected to Shielding 105 | . . . . . . 105 . . . . Regen/Repaired (Parts) 62 | . . . . . 62 . . . . . Core Remaining (%) 84 | 100 70 . 85 . 67 86 . 89 94 . Volleys Fired 270 | . 42 17 19 30 37 18 . . 4 103 Largest 3 | . 2 2 2 3 3 3 . . 1 3 Hottest 175 | . 40 40 112 175 173 122 . . 98 168 Shots Fired 516 | . 83 34 38 60 86 35 . . 4 176 Gun 423 | . 83 34 24 41 86 31 . . . 124 Cannon 69 | . . . 11 8 . . . . 4 46 Launcher 24 | . . . 3 11 . 4 . . . 6 Special . | . . . . . . . . . . . Kinetic 315 | . 83 34 10 . 43 13 . . . 132 Thermal 158 | . . . 14 41 43 18 . . 4 38 Explosive 24 | . . . 3 11 . 4 . . . 6 Electromagnetic 19 | . . . 11 8 . . . . . . Robot Hit Streak 27 | . 6 16 27 24 20 10 . . 6 13 Robot Miss Streak 6 | . 4 2 3 3 3 4 . . . 6 Penetration Max 1 | . . . . . . . . . . 1 Secondary Targets 5 | . 2 1 . . . . . . . 2 Max Gunslinging Chain 1 | . 1 1 . . . . . . . 1 Shots Hit Robots 348 | . 49 27 25 48 59 19 . . 4 117 Core Hits 218 | . 32 11 17 42 22 19 . . 3 72 Critical Kills 11 | . 1 . . . . . . . . 10 Critical Parts Destroyed 12 | . . . . 1 1 . . . . 10 Critical Strikes 27 | . 1 . . 3 2 . . . . 21 Burn 2 | . . . . 1 1 . . . . . Meltdown 1 | . . . . . . . . . . 1 Destroy 20 | . 1 . . . . . . . . 19 Blast 1 | . . . . . . . . . . 1 Corrupt 1 | . . . . 1 . . . . . . Smash 2 | . . . . 1 1 . . . . . Melee Attacks 28 | . . . . 19 7 2 . . . . Impact 26 | . . . . 19 7 . . . . . Slashing 2 | . . . . . . 2 . . . . Piercing . | . . . . . . . . . . . Sneak Attacks 6 | . . . . 3 2 1 . . . . Combat Hostiles . | . . . . . . . . . . . Follow-up Attacks . | . . . . . . . . . . . Damage Inflicted 9283 | . 652 273 568 1939 1175 965 . . 136 3575 Guns 3962 | . 652 273 211 451 884 306 . . . 1185 Cannons 1599 | . . . 127 138 . . . . 136 1198 Explosions 2834 | . . . 200 890 . 572 . . . 1172 Melee 834 | . . . . 456 291 87 . . . . Ramming 54 | . . . 30 4 . . . . . 20 Kinetic 3070 | . 652 273 109 . 345 142 . . . 1549 Thermal 2400 | . . . 196 531 539 164 . . 136 834 Explosive 2660 | . . . 106 810 . 572 . . . 1172 Electromagnetic 265 | . . . 127 138 . . . . . . Impact 747 | . . . . 456 291 . . . . . Slashing 87 | . . . . . . 87 . . . . Piercing . | . . . . . . . . . . . Highest Corruption 11 | . . . . 2 2 . . . . 11 Average Corruption 2 | . . . . 2 2 . . . . 2 Corruption Purged . | . . . . . . . . . . . Corruption Blocked . | . . . . . . . . . . . Effects 17 | . . . . 2 6 . . . . 9 Message Errors 5 | . . . . . 2 . . . . 3 Matter Fused 2 | . . . . 1 . . . . . 1 Heat Flow Errors 5 | . . . . 1 3 . . . . 1 Energy Discharges 1 | . . . . . . . . . . 1 Data Loss (minor) 1 | . . . . . . . . . . 1 Data Loss (major) 2 | . . . . . . . . . . 2 Alerts 1 | . . . . . 1 . . . . . Overload Shots . | . . . . . . . . . . . Overflow Damage 515 | . . . . 220 137 47 . . . 111 Projectiles 81 | . . . . 40 . . . . . 41 Explosions 70 | . . . . . . . . . . 70 Melee 364 | . . . . 180 137 47 . . . . Knockbacks 7 | . . . . 2 2 . . . . 3 Impact 4 | . . . . 2 2 . . . . . Kinetic 3 | . . . . . . . . . . 3 Secondary . | . . . . . . . . . . . Self-Inflicted Damage 227 | . . . . 75 . 55 . . . 97 Shots 5 | . . . . 3 . 1 . . . 1 Rammed 13 | . . . 7 3 . . . . . 3 Targets Rammed 14 | . . . 7 3 . . . . . 4 Kicked 1 | . . . . . . . . . . 1 Crushed . | . . . . . . . . . . . Highest Temperature 321 | . 20 9 312 321 258 180 . . 84 164 Average Temperature 95 | . 5 5 107 141 89 76 . . 44 41 Received Heat Transfer 1965 | . 303 126 51 486 207 132 . . . 660 Effects 2 | . . . . 2 . . . . . . Interference 2 | . . . . 2 . . . . . . Siege Activations 1 | . . . . . . . . . . 1 Total Turns 13 | . . . . . . . . . . 13 Longest Duration 13 | . . . . . . . . . . 13 Robots Corrupted . | . . . . . . . . . . . Combat Hostiles . | . . . . . . . . . . . Parts Fried 6 | . . . 1 3 2 . . . . . Impact Corruptions 10 | . . . . 7 3 . . . . . Robots Melted 1 | . . . . . . . . . . 1 Combat Hostiles 1 | . . . . . . . . . . 1 Parts Melted 7 | . . . 1 . 4 . . . . 2 Heat Transferred 4434 | . . . 409 1210 1147 296 . . 200 1172 Parts Sabotaged . | . . . . . . . . . . . Parts Stolen . | . . . . . . . . . . . Parts Stripped . | . . . . . . . . . . . Power Chain Reactions 1 | . . . . 1 . . . . . . Alert | -11 -10 -9 -9 -8 -8 -7 -6 -6 -5 -4 ------- Run | Yrd Mat Mat Min Mat Sto Fac Fac DSF Fac Fac Peak Influence 625 | . 329 258 225 528 505 578 184 128 111 625 Initial 229 | . . 138 100 63 137 229 184 128 61 39 Average 287 | . 201 194 163 369 319 362 184 121 73 347 Maximum Alert Level 2 | . 1 1 1 2 2 2 . . . 2 Low Security (%) 32 | . 47 47 75 11 18 . 100 100 100 21 Level 1 44 | . 52 52 24 33 46 79 . . . 44 Level 2 23 | . . . . 55 34 20 . . . 34 Level 3 . | . . . . . . . . . . . Level 4 . | . . . . . . . . . . . Level 5 . | . . . . . . . . . . . High Security . | . . . . . . . . . . . Max Security . | . . . . . . . . . . . Squads Dispatched 24 | . 3 1 . 3 1 3 . . 1 12 Investigation 13 | . 2 1 . 2 1 1 . . 1 5 Extermination 2 | . . . . . . . . . . 2 Reinforcement 6 | . 1 . . 1 . 2 . . . 2 Assault . | . . . . . . . . . . . Garrison 3 | . . . . . . . . . . 3 Intercept . | . . . . . . . . . . . Searches Triggered . | . . . . . . . . . . . Construction Impeded 2 | . . . . . . . . . . 2 Haulers Reinforced . | . . . . . . . . . . . Active Scanning Responses . | . . . . . . . . . . . Cargo Convoy Interrupts . | . . . . . . . . . . . Stealth | -11 -10 -9 -9 -8 -8 -7 -6 -6 -5 -4 --------- Run | Yrd Mat Mat Min Mat Sto Fac Fac DSF Fac Fac Distress Signals 4 | . 2 . . . 2 . . . . . Communications Jammed . | . . . . . . . . . . . Distress Signals . | . . . . . . . . . . . Times Spotted 119 | . 17 4 9 24 14 14 . 1 5 31 Peak Tracking Total 7 | . 6 3 3 5 3 7 . 1 5 6 Tactical Retreats 5 | . . . 1 . . 2 . . . 2 Traps | -11 -10 -9 -9 -8 -8 -7 -6 -6 -5 -4 ------- Run | Yrd Mat Mat Min Mat Sto Fac Fac DSF Fac Fac Traps Triggered 3 | . . . . 2 . . . . . 1 Indirectly . | . . . . . . . . . . . Trap Hack Attempts . | . . . . . . . . . . . Triggered . | . . . . . . . . . . . Disarmed . | . . . . . . . . . . . Reprogrammed 6 | . . . . 6 . . . . . . Reused . | . . . . . . . . . . . Traps Extracted . | . . . . . . . . . . . Installed . | . . . . . . . . . . . Triggered . | . . . . . . . . . . . Machines | -11 -10 -9 -9 -8 -8 -7 -6 -6 -5 -4 ---------- Run | Yrd Mat Mat Min Mat Sto Fac Fac DSF Fac Fac Machines Disabled 14 | . 1 . 2 2 1 1 . . . 7 Max in Single Turn 3 | . 1 . 1 1 1 1 . . . 3 Machines Repaired . | . . . . . . . . . . . Machines Dismantled . | . . . . . . . . . . . Machines Sabotaged . | . . . . . . . . . . . Overloaded Fab Kills . | . . . . . . . . . . . Hacking | -11 -10 -9 -9 -8 -8 -7 -6 -6 -5 -4 --------- Run | Yrd Mat Mat Min Mat Sto Fac Fac DSF Fac Fac Machines Accessed 21 | . 2 1 . 2 2 4 1 . 1 8 Terminals 13 | . 2 1 . 2 1 1 1 . . 5 Fabricators 5 | . . . . . . 3 . . 1 1 Repair Stations 1 | . . . . . 1 . . . . . Recycling Units 1 | . . . . . . . . . . 1 Scanalyzers . | . . . . . . . . . . . Garrison Access 1 | . . . . . . . . . . 1 Total Hacks 80 | . 6 2 . 23 4 15 1 . 4 25 Successful 40 | . 2 1 . 12 3 10 1 . 1 10 Failed 39 | . 4 1 . 10 1 5 . . 3 15 Catastrophic 5 | . 1 1 . 1 1 . . . . 1 Database Lockouts 1 | . . . . 1 . . . . . . Manual 37 | . 1 2 . 13 . 7 . . 2 12 Terminals 56 | . 6 2 . 23 2 4 1 . . 18 Fabricators 17 | . . . . . . 11 . . 4 2 Repair Stations 2 | . . . . . 2 . . . . . Recycling Units 2 | . . . . . . . . . . 2 Scanalyzers . | . . . . . . . . . . . Garrison Access 3 | . . . . . . . . . . 3 Terminal Hacks 20 | . 2 . . 9 1 2 1 . . 5 Part Schematic 1 | . . . . . . 1 . . . . Robot Analysis 1 | . . . . 1 . . . . . . Prototype ID Bank 4 | . 1 . . 1 1 1 . . . . Open DSF 2 | . . . . . . . 1 . . 1 Level Access Points 1 | . . . . . . . . . . 1 Branch Access Points 1 | . . . . 1 . . . . . . Emergency Access Points 1 | . . . . 1 . . . . . . Terminal Index 1 | . . . . . . . . . . 1 Alert Level 3 | . 1 . . 1 . . . . . 1 Unreport Threat 1 | . . . . 1 . . . . . . Locate Traps 2 | . . . . 1 . . . . . 1 Reprogram Traps 1 | . . . . 1 . . . . . . Zone Layout 1 | . . . . 1 . . . . . . Fabricator Hacks 5 | . . . . . . 4 . . 1 . Network Status 2 | . . . . . . 2 . . . . Load Schematic 1 | . . . . . . 1 . . . . Build 2 | . . . . . . 1 . . 1 . Repair Station Hacks 2 | . . . . . 2 . . . . . Scan Component 1 | . . . . . 1 . . . . . Repair 1 | . . . . . 1 . . . . . Recycling Unit Hacks 2 | . . . . . . . . . . 2 Report Inventory 1 | . . . . . . . . . . 1 Retrieve Components 1 | . . . . . . . . . . 1 Scanalyzer . | . . . . . . . . . . . Garrison Access Hacks . | . . . . . . . . . . . Unauthorized Hacks 11 | . . 1 . 3 . 4 . . . 3 Terminals 7 | . . 1 . 3 . 1 . . . 2 Botnet 4 | . . . . 2 . 1 . . . 1 Sabotage 1 | . . 1 . . . . . . . . Search 2 | . . . . 1 . . . . . 1 Fabricators 4 | . . . . . . 3 . . . 1 Prioritize 2 | . . . . . . 1 . . . 1 Liberate 1 | . . . . . . 1 . . . . Recompile 1 | . . . . . . 1 . . . . Repair Stations . | . . . . . . . . . . . Recycling Units . | . . . . . . . . . . . Scanalyzers . | . . . . . . . . . . . Garrison Access . | . . . . . . . . . . . Data Cores Recovered 1 | . . . . . 1 . . . . . Used . | . . . . . . . . . . . Hacking Detections 16 | . 2 . . 2 1 3 . . 1 7 Full Trace Events 8 | . 2 . . . 1 . . . 1 4 Feedback Events . | . . . . . . . . . . . Feedback Blocked . | . . . . . . . . . . . Robot Schematics Acquired . | . . . . . . . . . . . Robots Built . | . . . . . . . . . . . Authchips . | . . . . . . . . . . . Time . | . . . . . . . . . . . Total Robot Build Rating . | . . . . . . . . . . . Part Schematics Acquired 1 | . . . . . . 1 . . . . Parts Built 1 | . . . . . . 1 . . . . Authchips 1 | . . . . . . 1 . . . . Time 159 | . . . . . . 42 . . 117 . Total Part Build Rating 4 | . . . . . . 4 . . . . Parts Repaired 1 | . . . . . 1 . . . . . Time 60 | . . . . . 60 . . . . . Parts Recycled . | . . . . . . . . . . . Recycled Matter . | . . . . . . . . . . . Retrieved Matter . | . . . . . . . . . . . Retrieved Components 3 | . . . . . . . . . . 3 Parts Scanalyzed . | . . . . . . . . . . . Part Schematics Acquired . | . . . . . . . . . . . Parts Damaged . | . . . . . . . . . . . Bothacking | -11 -10 -9 -9 -8 -8 -7 -6 -6 -5 -4 ------------ Run | Yrd Mat Mat Min Mat Sto Fac Fac DSF Fac Fac Used RIF Installer . | . . . . . . . . . . . Robots Hacked . | . . . . . . . . . . . Non-combat . | . . . . . . . . . . . Combat . | . . . . . . . . . . . Robot Hacks Applied . | . . . . . . . . . . . Relay Couplers Released . | . . . . . . . . . . . Fabnet Peak Effective % . | . . . . . . . . . . . Robots Rewired . | . . . . . . . . . . . Allies Hacked . | . . . . . . . . . . . Hacks Repelled . | . . . . . . . . . . . Allies | -11 -10 -9 -9 -8 -8 -7 -6 -6 -5 -4 -------- Run | Yrd Mat Mat Min Mat Sto Fac Fac DSF Fac Fac Total Allies 2 | . . . . . . 2 . . . . Largest Group 2 | . . . . . . 2 . . . . Highest-Rated Group 64 | . . . . . . 64 . . . . Highest-Rated Ally 32 | . . . . . . 32 . . . . Total Orders . | . . . . . . . . . . . Ally Attacks 2 | . . . . . . 2 . . . . Total Damage 37 | . . . . . . 37 . . . . Kills 1 | . . . . . . 1 . . . . Allies Corrupted . | . . . . . . . . . . . Allies Melted . | . . . . . . . . . . . Intel | -11 -10 -9 -9 -8 -8 -7 -6 -6 -5 -4 ------- Run | Yrd Mat Mat Min Mat Sto Fac Fac DSF Fac Fac Robot Analysis Total 1 | . . . . 1 . . . . . . Derelict Logs Recovered 1 | . . . 1 . . . . . . . Drone Launches . | . . . . . . . . . . . Drone Recoveries . | . . . . . . . . . . . Exploration | -11 -10 -9 -9 -8 -8 -7 -6 -6 -5 -4 ------------- Run | Yrd Mat Mat Min Mat Sto Fac Fac DSF Fac Fac Turns Passed 3549 | . 384 231 626 590 383 427 4 26 38 840 Spaces Moved 2298 | 1 195 137 337 387 216 343 9 59 68 546 Core 181 | . . . . . . . . . 2 179 Treads 524 | . . 21 337 157 . . . . . 9 Legs 413 | 1 195 116 . . . . . . . 101 Wheels 71 | . . . . . . . . . . 71 Hover 559 | . . . . 230 216 74 . . . 39 Flight 550 | . . . . . . 269 9 59 66 147 Fastest Speed 27 | 120 120 120 160 48 48 27 30 30 34 31 Average Speed 95 | 120 124 128 160 100 93 60 30 31 34 70 Slowest Speed 240 | 120 190 240 160 240 240 230 30 34 50 225 Overloaded Moves . | . . . . . . . . . . . Propulsion Burnouts . | . . . . . . . . . . . Robots Hopped 6 | . . . . . . 4 . . 2 . Cave-ins Triggered . | . . . . . . . . . . . Exploration Rate (%) 25 | 2 31 13 56 33 37 11 1 70 2 20 Regions Visited 10 Branch Regions 2 Pre-discovered Areas 1 | . . . 1 . . . . . . . Known Exits Taken 2 | . . . . 1 . . 1 . . . Unknown Exits Taken 7 | 1 1 1 1 . 1 1 . . 1 . Scrap Searched 2 | . . . 2 . . . . . . . Spaces Dug 4 | . . . . 2 . 1 . . . 1 Terrain Destroyed 232 | . . . 37 79 . 26 . . . 90 Melee 3 | . . . . 2 . 1 . . . . Projectile 11 | . . . . . . . . . . 11 AOE 216 | . . . 37 77 . 25 . . . 77 Terrain Rammed . | . . . . . . . . . . . Walls Destroyed . | . . . . . . . . . . . Machines Disabled . | . . . . . . . . . . . Actions | -11 -10 -9 -9 -8 -8 -7 -6 -6 -5 -4 --------- Run | Yrd Mat Mat Min Mat Sto Fac Fac DSF Fac Fac Total 3129 | . 255 160 384 502 316 524 9 66 76 837 Wait 245 | . 1 . 5 5 27 123 . . . 84 Move 2277 | . 194 136 336 386 215 335 8 58 63 546 Hop 5 | . . . . . . 3 . . 2 . Pick Up 31 | . 4 . 2 7 2 8 . 3 1 4 Fast Attach 86 | . 4 4 5 14 10 9 . 1 2 37 Attach 29 | . 1 . . 5 . 6 1 . . 16 Detach 23 | . 2 . 1 4 . 3 . . . 13 Swap 34 | . 4 1 2 10 4 5 . . . 8 Drop 76 | . 3 2 7 19 14 12 . 4 4 11 Fire 270 | . 42 17 19 30 37 18 . . 4 103 Melee 28 | . . . . 19 7 2 . . . . Ram 3 | . . . . . . . . . . 3 Kick 1 | . . . . . . . . . . 1 Crush 10 | . . . 7 3 . . . . . . Escape Stasis 11 | . . . . . . . . . . 11 Rewire . | . . . . . . . . . . . Trap . | . . . . . . . . . . . Miscellaneous . | . . . . . . . . . . . Route ------- -11/Scrapyard -10/Materials (discovered 2 exits: *Mat / [*Min]) -9/Materials -9/Mines (discovered 2 exits: *Mat x2) -8/Materials (discovered 3 exits: *Fac / *Sto x2) -8/Storage -7/Factory -6/Factory -6/DSF -5/Factory -4/Factory (discovered 4 exits: Res x4) History --------- Turn | Location | Event 1 | -11/Scrapyard | Discovered new exit (range 0) 1 | -11/Scrapyard | Entered Materials 12 | -10/Materials | Discovered new exit (range 15) 260 | -10/Materials | Discovered new exit (range 16) 385 | -10/Materials | Entered another Materials area 385 | -9/Materials | Evolved 2 slots: Utility x2 516 | -9/Materials | Discovered new exit (range 6) 605 | -9/Materials | Build established: Scavenger-Mutant 616 | -9/Materials | Entered Mines 639 | -9/Mines | Joined a pair of Derelicts in attacking an 0b10 outpost 1010 | -9/Mines | Excavation squad dispatched 1010 | -9/Mines | A large section of the Mines collapsed 1125 | -9/Mines | Discovered new exit (range 15) 1205 | -9/Mines | Discovered new exit (range 9) 1220 | -9/Mines | Learned location of Storage (-8) 1242 | -9/Mines | Entered Materials 1242 | -8/Materials | Evolved 2 slots: Propulsion x1, Weapon x1 1386 | -8/Materials | Destroyed 7 combat bots 1415 | -8/Materials | Discovered new exit (range 4) 1527 | -8/Materials | Lost 3 parts (2n1u) 1710 | -8/Materials | Identified exit to Storage 1764 | -8/Materials | Discovered new exit (range 3) 1778 | -8/Materials | Central database locked down 1832 | -8/Materials | Entered Storage 2154 | -8/Storage | Repaired Aerolev Unit 2188 | -8/Storage | Discovered new exit (range 16) 2215 | -8/Storage | Entered Factory 2215 | -7/Factory | Evolved 2 slots: Propulsion x1, Utility x1 2517 | -7/Factory | Discovered new exit (range 3) 2537 | -7/Factory | Fabricated Transmission Jammer (x1) 2642 | -7/Factory | Entered another Factory area 2642 | -6/Factory | Evolved 2 slots: Propulsion x1, Utility x1 2646 | -6/Factory | Identified exit to DSF 2646 | -6/Factory | Entered DSF 2663 | -6/DSF | Additional patrols routed to DSF 2666 | -6/DSF | Discovered new exit (range 16) 2672 | -6/DSF | Entered Factory 2672 | -5/Factory | Evolved 2 slots: Utility x2 2690 | -5/Factory | Discovered new exit (range 13) 2710 | -5/Factory | Entered another Factory area 2710 | -4/Factory | Evolved 2 slots: Utility x2 2712 | -4/Factory | Identified exit to DSF 2735 | -4/Factory | Lost 4 parts (2n2u) 2895 | -4/Factory | Lost 3 parts (1n1u1w) 2958 | -4/Factory | Garrison activated, responded to threat 3177 | -4/Factory | Identified exit to Research 3279 | -4/Factory | Lost 9 parts (1p1n3u4w) 3339 | -4/Factory | Lost 7 parts (1p2n4u) 3463 | -4/Factory | Core integrity fell below 50% 3527 | -4/Factory | Core integrity fell below 20% 3536 | -4/Factory | System corruption reached 10% 3550 | -4/Factory | Destroyed by P-70 Sage with Tesla Rifle Last Messages --------------- 03500_ Assembly Bed disabled. 03503_ Acquired Impulse Thruster. 03503_ Q-thruster destroyed. 03504_ Dropped Adv. Cooling System. 03505_ Dropped Backup Laser VII. 03505_ R-10 Processor collects Backup Propulsion VII. 03505_ Dropped Backup Laser VII. 03506_ System corrupted: Substantial component data lost. 03506_ Impulse Thruster destroyed. 03507_ Dropped Mass Driver. 03522_ Acquired Gyrokinetic Inverter. 03525_ System corrupted: Component data lost. 03527_ Acquired Dispersion Rifle. 03531_ Backup Power VII destroyed. 03543_ OG:KK,NXYARGMUV8#8CHTAU 03547_ Slammed into P-70 Sage. 03549_ Dispersion Rifle destroyed. 03549_ Slammed into P-70 Sage. 03549_ Destabilizing: System interference. 03549_ Armor Integrity Analyzer temporarily disabled. Map ----- +----------------------------------------------------+ | ?????????????????????????????????????????????????? | | ?????????????????????????????????????????????????? | | ?????????????????????????????????????????????????? | | ?????????????????????????????????????????????????? | | ?????????????????????????????????????????????????? | | ?????????????????????????????????????????????????? | | ?????????????????????????????????????????????????? | | ?????????????????????????????????????????????????? | | ?????????????????????????????????????????????????? | | ?????????????????????????????????????????????????? | | ?????????????????????????????????????????????????? | | ?????????????????????????????????????????????????? | | ?????????????????????????????????????????????????? | | ?????????????????????????????????????????????????? | | ?????????????????????????????????????????????????? | | ?????????????????????????????????????????????????? | | ?????????????????????????????????????????????????? | | ?????????????????????????????????????????????????? | | ?????????????????????????????????????????????????? | | ?????????????????????????????????????????????????? | | ?????????????????????????????????????????????????? | | ????????????????????????#######??????????????????? | | ????????????????????????# #??????????????????? | | ????????????????????????# #?? ???????????????? | | ????????????????????????# p #? #?????????????? | | ????????????????????????#@ #? #?????????????? | | ????????????????????????#p """#? #?????????????? | | ????????